fUST/lending_fUST_20250908
["ID","MTS","AMOUNT","RATE_DAILY","PERIOD"]
[384315935,1757333459968,-160.0,0.00023087,5]
[384315936,1757333459977,-74745.45,0.000231,7]
[384315937,1757333459987,-1500.0,0.000231,28]
[384315938,1757333459996,-1500.0,0.000231,28]
[384315939,1757333460006,-1500.0,0.000231,28]
[384315940,1757333460015,-1500.0,0.000231,28]
[384315941,1757333460024,-1500.0,0.000231,28]
[384315942,1757333460034,-1500.0,0.000231,28]
[384315943,1757333460044,-1500.0,0.000231,28]
[384315944,1757333460053,-1500.0,0.000231,28]
[384315945,1757333460063,-1500.0,0.000231,28]
[384315946,1757333460073,-1500.0,0.000231,28]
[384315947,1757333460082,-205.3599,0.000231,28]
[384315948,1757333460092,-9360.9109523,0.00023182,2]
[384315949,1757333460101,-12617.1875918,0.00023182,2]
[384315950,1757333460111,-5000.0,0.00023241,2]
[384315951,1757333460121,-500.0,0.00023287,2]
[384315952,1757333460130,-1785.81,0.00023287,2]
[384315953,1757333460139,-151.0,0.00023288,7]
[384315954,1757333460150,-151.0,0.00023288,7]
[384315955,1757333460163,-151.0,0.00023288,7]
[384315956,1757333460172,-245.0,0.00023288,7]
[384315957,1757333460181,-83898.98,0.000233,2]
[384315958,1757333460191,-9342.58,0.000234,7]
[384315959,1757333460202,-1000.0,0.000235,2]
[384315960,1757333460212,-1760.0,0.00023527,2]
[384315961,1757333460221,-318.48,0.00023561,2]
[384315962,1757333460231,-318.48,0.00023561,2]
[384315963,1757333460240,-318.48,0.00023561,2]
[384315964,1757333460251,-318.48,0.00023561,2]
[384315965,1757333460260,-318.48,0.00023561,2]
[384315966,1757333460271,-318.48,0.00023561,2]
[384315967,1757333460280,-318.48,0.00023561,2]
[384315968,1757333460289,-318.48,0.00023561,2]
[384315969,1757333460299,-318.48,0.00023561,2]
[384315970,1757333460308,-318.48,0.00023561,2]
[384315971,1757333460318,-318.48,0.00023561,2]
[384315972,1757333460328,-318.48,0.00023561,2]
[384315973,1757333460338,-318.48,0.00023561,2]
[384315974,1757333460347,-318.48,0.00023561,2]
[384315975,1757333460356,-318.48,0.00023561,2]
[384315976,1757333460365,-318.48,0.00023561,2]
[384315977,1757333460375,-318.48,0.00023561,2]
[384315978,1757333460384,-318.48,0.00023561,2]
[384315979,1757333460394,-318.48,0.00023561,2]
[384315980,1757333460403,-318.48,0.00023561,2]
[384315981,1757333460412,-318.48,0.00023561,2]
[384315982,1757333460422,-318.48,0.00023561,2]
[384315983,1757333460432,-318.48,0.00023561,2]
[384315984,1757333460442,-318.68249231,0.00023561,2]
[384315985,1757333460451,-500.0,0.000236,9]
[384315986,1757333460461,-600.0,0.00023616,2]
[384315987,1757333460470,-750.15,0.00023688,2]
[384315988,1757333460480,-21437.33781878,0.0002372,2]
[384315989,1757333460490,-4027.0,0.0002375,2]
[384315990,1757333460499,-2088.7015599,0.00023763,2]
[384315991,1757333460508,-2815.2750879,0.00023763,2]
[384315992,1757333460518,-5500.0,0.00023789,2]
[384315993,1757333460527,-1059.97007856,0.00023794,12]
[384315994,1757333460537,-5115.00719276,0.00023845,2]
[384315995,1757333460546,-98063.0,0.0002387,2]
[384315996,1757333460555,-996.25311972,0.000239,10]
[384315997,1757333460565,-2200.0,0.00023904,2]
[384315998,1757333460576,-1789.9767065,0.00023924,2]
[384315999,1757333460585,-5455.08,0.00024,7]
[384316000,1757333460595,-8243.71555784,0.00024,2]
[384316001,1757333460605,-1705.73787602,0.00024,2]
[384316002,1757333460614,-160.0,0.00024,7]
[384316003,1757333460624,-160.0,0.00024,7]
[384316004,1757333460634,-160.0,0.00024,7]
[384316005,1757333460644,-160.0,0.00024,10]
[384316006,1757333460654,-2577.12,0.00024,2]
[384316007,1757333460663,-175.0,0.00024,5]
[384316008,1757333460673,-160.0,0.00024,7]
[384316009,1757333460682,-160.0,0.00024,10]
[384316010,1757333460691,-160.0,0.00024,7]
[384316011,1757333460700,-160.0,0.00024,10]
[384316012,1757333460710,-160.0,0.00024,7]
[384316013,1757333460719,-160.0,0.00024,10]
[384316014,1757333460729,-15000.0,0.00024,2]
[384316015,1757333460739,-74745.45,0.00024,7]
[384316016,1757333460748,-233.03190505,0.00024,7]
[384316017,1757333460757,-233.03190505,0.00024,10]
[384316018,1757333460767,-233.03190505,0.00024,3]
[384316019,1757333460775,-203.26219058,0.00024,3]
[384316020,1757333460785,-217.62647793,0.00024,7]
[384316021,1757333460795,-217.62647793,0.00024,3]
[384316022,1757333460804,-846.71598105,0.00024,7]
[384316023,1757333460813,-846.71598105,0.00024,3]
[384316024,1757333460824,-250.0,0.00024,2]
[384316025,1757333460833,-250.0,0.00024,2]
[384316026,1757333460843,-250.0,0.00024,2]
[384316027,1757333460853,-250.0,0.00024,2]
[384316028,1757333460862,-255.1,0.00024,2]
[384316029,1757333460871,-257.78239365,0.0002401,2]
[384316030,1757333460881,-1059.97007856,0.00024032,12]
[384316031,1757333460890,-7102.91883635,0.00024052,2]
[384316032,1757333460899,-5000.0,0.00024052,2]
[384316033,1757333460909,-5000.0,0.00024052,2]
[384316034,1757333460918,-5000.0,0.00024052,2]
[384316035,1757333460927,-5000.0,0.00024052,2]
[384316036,1757333460936,-5029.55861862,0.0002407,2]
[384316037,1757333460945,-1860.0,0.00024075,2]
[384316038,1757333460954,-9472.65,0.000241,7]
[384316039,1757333460963,-6446.7006303,0.00024133,2]
[384316040,1757333460972,-3430.90774546,0.00024137,2]
[384316041,1757333460982,-185.23258819,0.00024137,2]
[384316042,1757333460991,-3822.03943941,0.00024144,2]
[384316043,1757333461000,-800.0,0.00024155,2]
[384316044,1757333461010,-750.0,0.00024164,2]
[384316045,1757333461019,-5000.0,0.00024267,2]
[384316046,1757333461028,-1059.97007856,0.0002427,12]
[384316047,1757333461037,-4000.0,0.00024286,4]
[384316048,1757333461047,-6000.0,0.00024336,2]
[384316049,1757333461056,-800.0,0.00024344,2]
[384316050,1757333461065,-800.0,0.00024375,2]
[384316051,1757333461077,-451.07182503,0.00024379,2]
[384316052,1757333461086,-625.37455858,0.0002444,2]
[384316053,1757333461095,-800.0,0.00024494,2]
[384316054,1757333461104,-661.66986267,0.000245,2]
[384316055,1757333461114,-20000.0,0.000245,2]
[384316056,1757333461123,-83898.98,0.000245,2]
[384316057,1757333461133,-202.0,0.000245,7]
[384316058,1757333461142,-250.0,0.000245,2]
[384316059,1757333461151,-1059.97007856,0.00024508,12]
[384316060,1757333461165,-800.0,0.00024524,2]
[384316061,1757333461174,-750.15,0.00024532,2]
[384316062,1757333461183,-201.0,0.0002454,10]
[384316063,1757333461193,-800.0,0.00024544,2]
[384316064,1757333461203,-1000.0,0.00024597,20]
[384316065,1757333461213,-791.0,0.00024597,20]
[384316066,1757333461223,-33527.21061195,0.000246,14]
[384316067,1757333461444,-480.0,0.00013698,2]
[384316068,1757333461453,-480.0,0.00013698,2]
[384316069,1757333461464,-188.66017859,0.00013698,2]
[384316070,1757333461475,-291.33982141,0.00013698,2]
[384316071,1757333461486,-483.42,0.00013698,2]
[384316072,1757333461495,-105.88937655,0.00013972,2]
[384316073,1757333463194,300.0,0.00013246,2]
[384316074,1757333465771,204.03750631,0.00013147,2]
[384316075,1757333476785,-186.99373193,0.00013247,2]
[384316076,1757333482261,-177.01210144,0.00013247,2]
[384316077,1757333490331,283.36374792,0.0001285,2]
[384316078,1757333498534,30310.13479718,0.00013148,2]
[384316079,1757333498556,773.97096529,0.00013148,2]
[384316080,1757333498578,10000.01,0.00013148,2]
[384316081,1757333498599,10000.01,0.00013148,2]
[384316082,1757333498620,10000.01,0.00013148,2]
[384316083,1757333498641,10000.01,0.00013148,2]
[384316084,1757333498662,10000.01,0.00013148,2]
[384316085,1757333498684,10000.01,0.00013148,2]
[384316086,1757333498705,10000.01,0.00013148,2]
[384316087,1757333498727,10000.01,0.00013148,2]
[384316088,1757333498748,10000.01,0.00013148,2]
[384316089,1757333498773,248915.80423753,0.00013148,2]
[384316090,1757333501985,177.01210144,0.00013114,2]
[384316091,1757333524612,-156.68162977,0.00013246,2]
[384316092,1757333614578,4204.87676667,0.00028745,60]
[384316093,1757333661080,9822.99789856,0.00013148,2]
[384316094,1757333661104,10000.01,0.00013148,2]
[384316095,1757333661126,10000.01,0.00013148,2]
[384316096,1757333661148,10000.01,0.00013148,2]
[384316097,1757333661171,10000.01,0.00013148,2]
[384316098,1757333661193,10000.01,0.00013148,2]
[384316099,1757333661216,10000.01,0.00013148,2]
[384316100,1757333661238,10000.01,0.00013148,2]
[384316101,1757333661260,10000.01,0.00013148,2]
[384316102,1757333661282,10000.01,0.00013148,2]
[384316103,1757333661306,46632.83482049,0.00013148,2]
[384316104,1757333661793,-198.7416083,0.00013148,2]
[384316105,1757333664634,-202.39889938,0.00013148,2]
[384316106,1757333666898,-524.13135283,0.00013148,2]
[384316107,1757333671426,-290.13616409,0.00013148,2]
[384316108,1757333673686,-255.9724317,0.00013148,2]
[384316109,1757333675235,-10000.01,0.00013148,2]
[384316110,1757333675369,-10000.01,0.00013148,2]
[384316111,1757333675499,-10000.01,0.00013148,2]
[384316112,1757333676143,-10000.01,0.00013148,2]
[384316113,1757333676272,-10000.01,0.00013148,2]
[384316114,1757333676502,-512.76360136,0.00013148,2]
[384316115,1757333678531,-3149.6986609,0.00013016,2]
[384316116,1757333678566,-3700.6126782,0.00013148,2]
[384316117,1757333678808,-497.28,0.00012329,2]
[384316118,1757333678842,-9005.45,0.00013148,2]
[384316119,1757333678919,-10000.01,0.00013148,2]
[384316120,1757333679048,-10000.01,0.00013148,2]
[384316121,1757333679194,-10000.01,0.00013148,2]
[384316122,1757333679360,-10000.01,0.00013148,2]
[384316123,1757333679526,-10000.01,0.00013148,2]
[384316124,1757333679724,-10000.01,0.00013148,2]
[384316125,1757333679881,-10000.01,0.00013148,2]
[384316126,1757333680003,-10000.01,0.00013148,2]
[384316127,1757333681329,-360.54778552,0.00013147,2]
[384316128,1757333683170,-139.45221448,0.00013147,2]
[384316129,1757333683312,-58.55579781,0.00013147,2]
[384316130,1757333683811,-441.44420219,0.00013147,2]
[384316131,1757333683840,-500.0,0.00013147,2]
[384316132,1757333683869,-500.0,0.00013147,2]
[384316133,1757333683899,-500.0,0.00013147,2]
[384316134,1757333683930,-500.0,0.00013147,2]
[384316135,1757333683958,-500.0,0.00013147,2]
[384316136,1757333683987,-500.0,0.00013147,2]
[384316137,1757333684017,-212.73813331,0.00013147,2]
[384316138,1757333684047,-500.0,0.00013147,2]
[384316139,1757333684077,-500.0,0.00013147,2]
[384316140,1757333684106,-161.73131099,0.00013147,2]
[384316141,1757333684170,-500.0,0.00013147,2]
[384316142,1757333684199,-500.0,0.00013147,2]
[384316143,1757333684231,-500.0,0.00013147,2]
[384316144,1757333684262,-500.0,0.00013147,2]
[384316145,1757333684291,-500.0,0.00013147,2]
[384316146,1757333684321,-500.0,0.00013147,2]
[384316147,1757333684350,-500.0,0.00013147,2]
[384316148,1757333684381,-500.0,0.00013147,2]
[384316149,1757333684413,-500.0,0.00013147,2]
[384316150,1757333684444,-500.0,0.00013147,2]
[384316151,1757333684553,-500.0,0.00013147,2]
[384316152,1757333684591,-500.0,0.00013147,2]
[384316153,1757333684620,-500.0,0.00013147,2]
[384316154,1757333684649,-500.0,0.00013147,2]
[384316155,1757333684678,-500.0,0.00013147,2]
[384316156,1757333684706,-500.0,0.00013147,2]
[384316157,1757333684734,-500.0,0.00013147,2]
[384316158,1757333684763,-500.0,0.00013147,2]
[384316159,1757333684792,-500.0,0.00013147,2]
[384316160,1757333684820,-500.0,0.00013147,2]
[384316161,1757333684914,-500.0,0.00013147,2]
[384316162,1757333684945,-500.0,0.00013147,2]
[384316163,1757333684976,-500.0,0.00013147,2]
[384316164,1757333685005,-500.0,0.00013147,2]
[384316165,1757333685034,-500.0,0.00013147,2]
[384316166,1757333685063,-500.0,0.00013147,2]
[384316167,1757333685090,-498.82835447,0.00013147,2]
[384316168,1757333685119,-595.45500038,0.00013147,2]
[384316169,1757333685149,-500.0,0.00013147,2]
[384316170,1757333685178,-311.4432903,0.00013147,2]
[384316171,1757333685309,-188.5567097,0.00013147,2]
[384316172,1757333685339,-500.0,0.00013147,2]
[384316173,1757333685368,-500.0,0.00013147,2]
[384316174,1757333685396,-500.0,0.00013147,2]
[384316175,1757333685424,-435.75940302,0.00013147,2]
[384316176,1757333685452,-500.0,0.00013147,2]
[384316177,1757333685481,-175.48293501,0.00013147,2]
[384316178,1757333685510,-500.0,0.00013147,2]
[384316179,1757333685539,-500.0,0.00013147,2]
[384316180,1757333685568,-500.0,0.00013147,2]
[384316181,1757333685597,-500.0,0.00013147,2]
[384316182,1757333685836,-500.0,0.00013147,2]
[384316183,1757333685967,-500.0,0.00013147,2]
[384316184,1757333686000,-500.0,0.00013147,2]
[384316185,1757333686030,-500.0,0.00013147,2]
[384316186,1757333686058,-500.0,0.00013147,2]
[384316187,1757333686087,-500.0,0.00013147,2]
[384316188,1757333686116,-500.0,0.00013147,2]
[384316189,1757333686144,-500.0,0.00013147,2]
[384316190,1757333686173,-263.05512437,0.00013147,2]
[384316191,1757333686201,-500.0,0.00013147,2]
[384316192,1757333686302,-500.0,0.00013147,2]
[384316193,1757333686331,-500.0,0.00013147,2]
[384316194,1757333686360,-500.0,0.00013147,2]
[384316195,1757333686388,-500.0,0.00013147,2]
[384316196,1757333686417,-500.0,0.00013147,2]
[384316197,1757333686445,-500.0,0.00013147,2]
[384316198,1757333686474,-500.0,0.00013147,2]
[384316199,1757333686503,-500.0,0.00013147,2]
[384316200,1757333686532,-500.0,0.00013147,2]
[384316201,1757333687078,-291.35041951,0.00013148,2]
[384316202,1757333687412,-437.1758279,0.00013015,2]
[384316203,1757333687426,-500.0,0.00013015,2]
[384316204,1757333687440,-500.0,0.00013015,2]
[384316205,1757333687462,-1000.01,0.00013015,2]
[384316206,1757333687476,-6057.26151779,0.00013015,2]
[384316207,1757333687485,-3942.74848221,0.00013148,2]
[384316208,1757333687506,-10000.01,0.00013148,2]
[384316209,1757333687520,-10000.01,0.00013148,2]
[384316210,1757333688124,-238.59554534,0.00013148,2]
[384316211,1757333689787,-753.35,0.00012329,2]
[384316212,1757333689821,-8493.31,0.00013148,2]
[384316213,1757333689961,-10000.01,0.00013148,2]
[384316214,1757333690127,-10000.01,0.00013148,2]
[384316215,1757333690273,-10000.01,0.00013148,2]
[384316216,1757333690404,-500.0,0.00013147,2]
[384316217,1757333690438,-9000.01,0.00013148,2]
[384316218,1757333690542,-3112.33390197,0.00013148,2]
[384316219,1757333690570,-3775.34219606,0.00013148,2]
[384316220,1757333696330,1200.0,0.00013114,2]
[384316221,1757333699576,331.12,0.00012329,2]
[384316222,1757333705858,1200.0,0.00013114,2]
[384316223,1757333709982,1932.63,0.00012329,2]
[384316224,1757333714956,1200.0,0.00013114,2]
[384316225,1757333715880,4136.26,0.0001251,2]
[384316226,1757333715905,10000.01,0.0001251,2]
[384316227,1757333715931,7113.9452339,0.0001251,2]
[384316228,1757333720423,1610.53,0.00012329,2]
[384316229,1757333724728,1200.0,0.00013114,2]
[384316230,1757333730882,75.5347661,0.00012329,2]
[384316231,1757333730905,1266.5652339,0.00012329,2]
[384316232,1757333735360,1200.0,0.00013114,2]
[384316233,1757333741342,1118.42,0.00012329,2]
[384316234,1757333745292,1200.0,0.00013114,2]
[384316235,1757333752106,932.02,0.00012329,2]
[384316236,1757333755078,-346.07787821,0.00013246,2]
[384316237,1757333755645,1200.0,0.00013114,2]
[384316238,1757333756857,-233.49066903,0.00013246,2]
[384316239,1757333759795,-179.93467193,0.00013246,2]
[384316240,1757333761354,-393.72803304,0.00013246,2]
[384316241,1757333762566,776.68,0.00012329,2]
[384316242,1757333763049,-46.76874779,0.00013246,2]
[384316243,1757333773167,647.23,0.00012329,2]
[384316244,1757333775782,-287.34474372,0.00013277,2]
[384316245,1757333778215,-274.36274418,0.00013277,2]
[384316246,1757333783587,539.36,0.00012329,2]
[384316247,1757333783724,-375.15682839,0.00013277,2]
[384316248,1757333784480,152.41223673,0.00013144,2]
[384316249,1757333784503,222.74459166,0.00013144,2]
[384316250,1757333793991,449.47,0.00012329,2]
[384316251,1757333803342,447.52017444,0.00013144,2]
[384316252,1757333803366,489.34414185,0.00013144,2]
[384316253,1757333804533,374.56,0.00012329,2]
[384316254,1757333809226,-164.05823101,0.00013277,2]
[384316255,1757333811458,-344.18958529,0.00013277,2]
[384316256,1757333813486,-151.0,0.00013277,2]
[384316257,1757333813663,772.80608528,0.00013144,2]
[384316258,1757333815237,312.13,0.00012329,2]
[384316259,1757333815761,-277.61649999,0.00013277,2]
[384316261,1757333825661,260.11,0.00012329,2]
[384316262,1757333830588,163.818465,0.00012705,2]
[384316263,1757333835428,-300.12924546,0.0001324,2]
[384316264,1757333836339,216.76,0.00012329,2]
[384316265,1757333837452,-271.97452811,0.0001324,2]
[384316266,1757333839701,-370.68662856,0.0001324,2]
[384316267,1757333842005,-220.11109706,0.0001324,2]
[384316268,1757333844206,-37.09850081,0.0001324,2]
[384316269,1757333844229,-167.3945075,0.00013274,2]
[384316270,1757333845207,257.20959787,0.00013108,2]
[384316271,1757333846778,180.63,0.00012329,2]
[384316272,1757333857240,150.53,0.00012329,2]
[384316273,1757333867708,752.65,0.00012329,2]
[384316274,1757333868417,-198.01979128,0.0001324,2]
[384316275,1757333872428,1001.98020872,0.00013108,2]
[384316276,1757333872455,-211.21256575,0.0001324,2]
[384316277,1757333874552,-169.97848324,0.0001324,2]
[384316278,1757333876945,-266.27671976,0.0001324,2]
[384316279,1757333880473,-163.38137644,0.0001324,2]
[384316280,1757333883294,-191.13106353,0.0001324,2]
[384316281,1757333891476,-551.4789175,0.0001324,2]
[384316282,1757333893814,-208.02547189,0.0001324,2]
[384316283,1757333896075,-367.89372861,0.0001324,2]
[384316284,1757333898468,-72.601882,0.0001324,2]
[384316285,1757333910273,302.5102168,0.00012532,2]
[384316286,1757333918146,-165.01220216,0.0001324,2]
[384316287,1757333919929,-165.97846305,0.0001324,2]
[384316288,1757333921609,-157.14661163,0.0001324,2]
[384316289,1757333926611,711.86272316,0.00013108,2]
[384316290,1757333928260,-155.90967631,0.0001324,2]
[384316291,1757333930445,-238.96833848,0.0001324,2]
[384316292,1757333932707,-316.98470837,0.0001324,2]
[384316293,1757333944775,-183.01529163,0.0001324,2]
[384316294,1757333948895,-176.63950592,0.0001324,2]
[384316295,1757333950447,-184.11073457,0.0001324,2]
[384316296,1757333953253,-320.23028771,0.0001324,2]
[384316297,1757333954194,840.34520245,0.00013108,2]
[384316298,1757333956593,-163.27744421,0.0001324,2]
[384316299,1757333958167,3212.76335887,0.00013151,2]
[384316300,1757333958192,10000.01,0.00013151,2]
[384316301,1757333958217,10000.01,0.00013151,2]
[384316302,1757333958241,10000.01,0.00013151,2]
[384316303,1757333958265,10000.01,0.00013151,2]
[384316304,1757333958289,10000.01,0.00013151,2]
[384316305,1757333958315,10000.01,0.00013151,2]
[384316306,1757333958341,10000.01,0.00013151,2]
[384316307,1757333958365,4167.69211893,0.00013151,2]
[384316308,1757333958961,-172.72673596,0.0001324,2]
[384316309,1757333982357,1200.0,0.00013108,2]
[384316310,1757333983000,-287.06555677,0.0001324,2]
[384316311,1757333984732,-205.05568667,0.0001324,2]
[384316312,1757333988173,-176.47737352,0.0001324,2]
[384316313,1757333993333,-531.40138304,0.0001324,2]
[384316314,1757334010603,1031.22942018,0.00013108,2]
[384316315,1757334020705,1200.0,0.00013108,2]
[384316316,1757334046070,1200.0,0.00013108,2]
[384316317,1757334049040,-187.73810403,0.0001324,2]
[384316318,1757334051278,-152.33357816,0.0001324,2]
[384316319,1757334052189,767.42,0.00012329,2]
[384316320,1757334053018,-300.0,0.0001324,2]
[384316321,1757334055245,-282.89139009,0.0001324,2]
[384316322,1757334056920,-226.81347349,0.0001324,2]
[384316323,1757334058991,-50.22345423,0.0001324,2]
[384316324,1757334073957,-283.98575474,0.00013277,2]
[384316325,1757334076066,-193.92042082,0.00013277,2]
[384316326,1757334079061,-162.89081125,0.00013277,2]
[384316327,1757334081874,-221.14646626,0.00013277,2]
[384316328,1757334082552,296.06732948,0.00013144,2]
[384316329,1757334083285,-74.92086322,0.00013277,2]
[384316331,1757334089767,-374.46225837,0.00013277,2]
[384316332,1757334096205,-168.0,0.00013277,2]
[384316333,1757334100395,-378.70883504,0.00013277,2]
[384316334,1757334100419,-61.55065626,0.00013277,2]
[384316335,1757334102386,137.60113141,0.00013144,2]
[384316336,1757334102410,541.10770363,0.00013144,2]
[384316337,1757334103144,-238.44934374,0.00013277,2]
[384316338,1757334128910,936.86431629,0.00013144,2]
[384316339,1757334154900,936.86431629,0.00013144,2]
[384316340,1757334181158,936.86431629,0.00013144,2]
[384316341,1757334197988,300.0,0.00013144,2]
[384316342,1757334207604,936.86431629,0.00013144,2]
[384316343,1757334215871,661.28,0.00012329,2]
[384316344,1757334232456,936.86431629,0.00013144,2]
[384316345,1757334246920,212.67,0.00012329,2]
[384316346,1757334256988,936.86431629,0.00013144,2]
[384316347,1757334265748,214.9066731,0.0001251,2]
[384316348,1757334266239,-178.77,0.00013277,2]
[384316349,1757334267736,338.89,0.00012329,2]
[384316350,1757334269076,-250.44953104,0.00013277,2]
[384316351,1757334271262,-152.0,0.00013277,2]
[384316352,1757334274166,-355.64478525,0.00013277,2]
[384316353,1757334274819,300.0,0.00013144,2]
[384316354,1757334286190,-177.01210144,0.00013274,2]
[384316355,1757334288568,350.26,0.00012329,2]
[384316356,1757334299040,291.88,0.00012329,2]
[384316358,1757334312884,177.01210144,0.00013141,2]
[384316359,1757334313903,160.912332,0.00024,30]
[384316360,1757334314102,-177.01210144,0.00013274,2]
[384316361,1757334315895,-358.16245253,0.00013277,2]
[384316362,1757334318035,-152.7101909,0.00013277,2]
[384316363,1757334320131,-399.67114177,0.00013277,2]
[384316364,1757334321972,410.29844998,0.00013144,2]
[384316365,1757334323454,-10.62730821,0.00013277,2]
[384316366,1757334330596,580.51917411,0.00012329,2]
[384316367,1757334330622,34.31082589,0.00012329,2]
[384316368,1757334341456,-161.78298037,0.00013274,2]
[384316369,1757334343735,-15.22912107,0.00013274,2]
[384316371,1757334367468,177.01210144,0.00013141,2]
[384316373,1757334382158,201.1253017,0.0001251,2]
[384316374,1757334388332,-205.81641368,0.00013174,2]
[384316375,1757334388357,-54.4525301,0.00013274,2]
[384316376,1757334390704,-122.55957134,0.00013274,2]
[384316377,1757334390726,-145.79072425,0.00013277,2]
[384316378,1757334392556,844.59,0.00012329,2]
[384316379,1757334392982,-289.46609302,0.00013277,2]
[384316380,1757334396349,-117.44583877,0.00013277,2]
[384316381,1757334420080,177.01210144,0.00013141,2]
[384316382,1757334444839,177.01210144,0.00013141,2]
[384316385,1757334469527,177.01210144,0.00013141,2]
[384316386,1757334474172,-177.47639593,0.00013257,2]
[384316387,1757334477800,-579.02510419,0.00013257,2]
[384316388,1757334480002,-232.29028111,0.00013257,2]
[384316389,1757334482305,-174.52933641,0.00013257,2]
[384316390,1757334483946,-463.4699604,0.00013257,2]
[384316391,1757334487250,-469.74589806,0.00013257,2]
[384316392,1757334492480,-163.70506268,0.00013257,2]
[384316393,1757334495198,-174.04407935,0.00013257,2]
[384316394,1757334496219,6576.1904676,0.00013124,2]
[384316395,1757334496910,-251.74378276,0.00013257,2]
[384316396,1757334499225,-371.53781693,0.00013257,2]
[384316398,1757334501586,-260.54907229,0.00013257,2]
[384316400,1757334503799,-326.70069019,0.00013257,2]
[384316401,1757334506319,216.212307,0.00013698,10]
[384316402,1757334506422,-176.11760513,0.00013257,2]
[384316403,1757334509154,-214.01383213,0.00013257,2]
[384316405,1757334511291,-156.603064,0.00013257,2]
[384316406,1757334515823,-152.0,0.00013257,2]
[384316407,1757334518801,-258.12254443,0.00013257,2]
[384316408,1757334522628,1635.74499905,0.00013124,2]
[384316409,1757334522653,2693.43046309,0.00013124,2]
[384316410,1757334522686,-163.70506268,0.00013257,2]
[384316411,1757334525377,-195.12853109,0.00013257,2]
[384316412,1757334527829,-374.46453895,0.00013257,2]
[384316413,1757334530622,-344.0515628,0.00013257,2]
[384316414,1757334532262,-186.6659635,0.00013257,2]
[384316415,1757334534540,-508.02080877,0.00013257,2]
[384316416,1757334536716,-228.42226009,0.00013257,2]
[384316417,1757334538369,-455.48778367,0.00013257,2]
[384316418,1757334541162,-312.03418675,0.00013257,2]
[384316419,1757334543355,-164.11778576,0.00013257,2]
[384316420,1757334547462,-203.9665338,0.00013257,2]
[384316421,1757334548642,1138.95443365,0.00013124,2]
[384316422,1757334549199,-365.90011165,0.00013257,2]
[384316423,1757334551553,-300.0,0.00013257,2]
[384316424,1757334554244,-269.0877882,0.00013257,2]
[384316425,1757334554267,-121.64507165,0.00013274,2]
[384316426,1757334556688,-55.36702979,0.00013274,2]
[384316429,1757334583525,177.01210144,0.00013141,2]
[384316430,1757334609832,177.01210144,0.00013141,2]
[384316431,1757334610901,5813.60090038,0.00012526,2]
[384316432,1757334610924,10000.01,0.00012526,2]
[384316433,1757334610946,10000.01,0.00012526,2]
[384316434,1757334610968,10000.01,0.00012526,2]
[384316435,1757334610993,4665.67789492,0.00012526,2]
[384316436,1757334611514,-177.01210144,0.00013274,2]
[384316437,1757334613473,168.7488363,0.00012526,2]
[384316438,1757334613496,497.2511637,0.00012526,2]
[384316440,1757334618240,154.21,0.00012329,2]
[384316441,1757334628889,527.71,0.00012329,2]
[384316442,1757334628950,177.01210144,0.00013141,2]
[384316455,1757334632227,-177.01210144,0.00013274,2]
[384316456,1757334632237,-177.01210144,0.00013408,2]
[384316458,1757334632247,-1200.0,0.00013508,2]
[384316460,1757334632256,-300.0,0.00013509,2]
[384316462,1757334632265,-300.0,0.00013509,2]